fUST/lending_fUST_20240810
["ID","MTS","AMOUNT","RATE_DAILY","PERIOD"]
[334585950,1723281039943,-500.0,0.00019939,2]
[334585952,1723281039952,-500.0,0.00019939,2]
[334585954,1723281039961,-500.0,0.00019939,2]
[334585955,1723281039970,-500.0,0.00019939,2]
[334585956,1723281039980,-500.0,0.00019939,2]
[334585957,1723281039989,-500.0,0.00019939,2]
[334585958,1723281040001,-500.0,0.00019939,2]
[334585959,1723281040011,-500.0,0.00019939,2]
[334585960,1723281040022,-500.0,0.00019939,2]
[334585961,1723281040031,-184.27823494,0.00019939,2]
[334585962,1723281040042,-500.0,0.00019939,2]
[334585963,1723281040053,-500.0,0.00019939,2]
[334585964,1723281040063,-108153.830374,0.0001994,2]
[334585965,1723281040075,-57496.95906563,0.0001994,11]
[334585966,1723281040084,-210.942509,0.0001994,2]
[334585967,1723281040094,-210.942509,0.0001994,2]
[334585968,1723281040103,-162230.745561,0.0001994,2]
[334585969,1723281040112,-151.0,0.0001995,2]
[334585970,1723281040121,-151.0,0.0001995,2]
[334585971,1723281040130,-151.0,0.0001995,2]
[334585972,1723281040140,-151.0,0.00019959,2]
[334585973,1723281040150,-151.0,0.00019959,2]
[334585974,1723281040159,-301.7956,0.00019959,2]
[334585976,1723281040168,-151.0,0.00019959,2]
[334585977,1723281040178,-151.0,0.00019959,2]
[334585979,1723281040189,-179.151166,0.00019959,2]
[334585981,1723281040198,-179.151166,0.00019959,2]
[334585982,1723281040207,-494.155612,0.00019959,2]
[334585984,1723281040217,-494.155612,0.00019959,2]
[334585986,1723281040226,-339.942026,0.00019959,2]
[334585988,1723281040236,-339.942026,0.00019959,2]
[334585990,1723281040246,-792.7823,0.00019959,2]
[334585992,1723281040256,-792.7823,0.00019959,2]
[334585993,1723281040265,-539.397243,0.00019959,2]
[334585995,1723281040275,-539.397243,0.00019959,2]
[334585997,1723281040284,-493.687927,0.00019959,2]
[334585999,1723281040294,-493.687927,0.00019959,2]
[334586000,1723281040303,-151.0,0.00019959,2]
[334586002,1723281040312,-128371.07664542,0.0001996,2]
[334586006,1723281040348,-38751.8654851,0.0001996,2]
[334586008,1723281040359,-426.396285,0.0001996,2]
[334586010,1723281040370,-426.396285,0.0001996,2]
[334586012,1723281040380,-151.72358,0.0001996,2]
[334586013,1723281040390,-151.0,0.0001996,2]
[334586015,1723281040400,-151.0,0.0001996,2]
[334586016,1723281040409,-151.0,0.0001996,2]
[334586018,1723281040423,-179.151166,0.0001996,2]
[334586019,1723281040435,-179.151166,0.0001996,2]
[334586021,1723281040444,-494.155612,0.0001996,2]
[334586022,1723281040454,-494.155612,0.0001996,2]
[334586023,1723281040463,-339.942026,0.0001996,2]
[334586024,1723281040472,-339.942026,0.0001996,2]
[334586025,1723281040481,-792.7823,0.0001996,2]
[334586026,1723281040492,-792.7823,0.0001996,2]
[334586027,1723281040501,-151.0,0.0001996,2]
[334586028,1723281040510,-151.0,0.0001996,2]
[334586029,1723281040520,-539.397243,0.0001996,2]
[334586030,1723281040529,-539.397243,0.0001996,2]
[334586031,1723281040538,-493.687927,0.0001996,2]
[334586032,1723281040547,-493.687927,0.0001996,2]
[334586033,1723281040558,-210.942509,0.0001996,2]
[334586034,1723281040566,-210.942509,0.0001996,2]
[334586035,1723281040576,-151.0,0.00019969,2]
[334586036,1723281040586,-151.0,0.00019969,2]
[334586037,1723281040598,-200.0,0.00019973,2]
[334586038,1723281040607,-200.0,0.00019973,2]
[334586039,1723281040617,-151.0,0.00019979,2]
[334586040,1723281040626,-151.0,0.00019979,2]
[334586041,1723281040636,-299.041067,0.00019979,2]
[334586042,1723281040645,-151.0,0.00019979,2]
[334586043,1723281040655,-151.0,0.00019979,2]
[334586044,1723281040664,-426.396285,0.00019979,2]
[334586045,1723281040673,-426.396285,0.00019979,2]
[334586046,1723281040685,-151.0,0.00019979,2]
[334586047,1723281040695,-151.0,0.00019979,2]
[334586048,1723281040705,-151.0,0.00019979,2]
[334586049,1723281040714,-179.151166,0.00019979,2]
[334586050,1723281040723,-179.151166,0.00019979,2]
[334586051,1723281040732,-494.155612,0.00019979,2]
[334586052,1723281040742,-494.155612,0.00019979,2]
[334586053,1723281040751,-339.942026,0.00019979,2]
[334586054,1723281040760,-339.942026,0.00019979,2]
[334586055,1723281040771,-792.7823,0.00019979,2]
[334586056,1723281040781,-792.7823,0.00019979,2]
[334586057,1723281040793,-151.0,0.00019979,2]
[334586058,1723281040804,-151.0,0.00019979,2]
[334586059,1723281040814,-18885.5421213,0.0001998,11]
[334586060,1723281040827,-151.0,0.0001998,2]
[334586061,1723281040837,-151.0,0.0001998,2]
[334586062,1723281040848,-151.0,0.0001998,2]
[334586063,1723281040859,-151.0,0.0001998,2]
[334586064,1723281040868,-151.0,0.0001998,2]
[334586065,1723281040877,-179.151166,0.0001998,2]
[334586066,1723281040887,-179.151166,0.0001998,2]
[334586067,1723281040896,-494.155612,0.0001998,2]
[334586068,1723281040905,-494.155612,0.0001998,2]
[334586069,1723281040914,-339.942026,0.0001998,2]
[334586070,1723281040924,-339.942026,0.0001998,2]
[334586071,1723281040934,-792.7823,0.0001998,2]
[334586072,1723281040944,-792.7823,0.0001998,2]
[334586073,1723281040954,-151.0,0.0001998,2]
[334586074,1723281040965,-151.0,0.0001998,2]
[334586075,1723281040975,-150.01,0.00019989,2]
[334586076,1723281040984,-2993.33781285,0.00019989,2]
[334586077,1723281040994,-136199.81338892,0.0001999,2]
[334586089,1723281041734,-49507.69280082,0.0001999,2]
[334586091,1723281041744,-151.0,0.0001999,2]
[334586092,1723281041753,-153.381633,0.0001999,2]
[334586094,1723281041762,-151.0,0.0001999,2]
[334586096,1723281041771,-151.0,0.0001999,2]
[334586098,1723281041780,-151.0,0.0001999,2]
[334586099,1723281041790,-151.0,0.0001999,2]
[334586101,1723281041799,-151.0,0.0001999,2]
[334586103,1723281041808,-183.689948,0.0001999,2]
[334586105,1723281041817,-426.396285,0.0001999,2]
[334586107,1723281041826,-426.396285,0.0001999,2]
[334586108,1723281041835,-426.396285,0.0001999,2]
[334586110,1723281041844,-426.396285,0.0001999,2]
[334586112,1723281041853,-151.0,0.0001999,2]
[334586114,1723281041862,-151.0,0.0001999,2]
[334586116,1723281041872,-245.653476,0.0001999,2]
[334586117,1723281041881,-179.151166,0.0001999,2]
[334586119,1723281041890,-179.151166,0.0001999,2]
[334586121,1723281041899,-494.155612,0.0001999,2]
[334586123,1723281041908,-494.155612,0.0001999,2]
[334586125,1723281041917,-339.942026,0.0001999,2]
[334586127,1723281041927,-339.942026,0.0001999,2]
[334586128,1723281041937,-792.7823,0.0001999,2]
[334586130,1723281041946,-792.7823,0.0001999,2]
[334586132,1723281041956,-151.0,0.0001999,2]
[334586134,1723281041965,-151.0,0.0001999,2]
[334586136,1723281041974,-539.397243,0.0001999,2]
[334586137,1723281041983,-539.397243,0.0001999,2]
[334586139,1723281041992,-493.687927,0.0001999,2]
[334586141,1723281042002,-493.687927,0.0001999,2]
[334586142,1723281042011,-210.942509,0.0001999,2]
[334586144,1723281042021,-210.942509,0.0001999,2]
[334586146,1723281042031,-2602.22864022,0.0002,2]
[334586148,1723281042040,-294.13503037,0.0002,2]
[334586149,1723281042049,-1444.82566449,0.0002,2]
[334586150,1723281042058,-289.82418402,0.0002,2]
[334586151,1723281042067,-1375.9336014,0.0002,2]
[334586152,1723281042079,-2809.03111532,0.0002,2]
[334586153,1723281042089,-1321.18636777,0.0002,2]
[334586182,1723281043534,-200.0,0.00019973,2]
[334586183,1723281043543,-4073.57667893,0.0002,2]
[334586233,1723281341637,304.62,0.00015011,2]
[334586239,1723281413192,912.9067075,0.00015011,2]
[334586240,1723281480934,164.094202,0.00014247,2]
[334586294,1723282020788,154.79103211,9.999e-05,2]
[334586296,1723282078540,155.02706732,0.0001212,2]
[334586304,1723282138394,155.02918317,0.0001,2]
[334586305,1723282154104,-580.98183997,0.00015952,2]
[334586343,1723282232708,-300.20744071,0.00015952,2]
[334586345,1723282232718,-288.34755929,0.00016095,2]
[334586388,1723282239035,-226.79399032,0.00016095,2]
[334586389,1723282239045,-159.96841318,0.0001611,2]
[334586390,1723282239055,-336.05027019,0.0001611,2]
[334586392,1723282239064,-314.13592146,0.00016309,2]
[334586394,1723282239074,-414.64740725,0.00016532,2]
[334586396,1723282239084,-609.149239,0.00018273,2]
[334586397,1723282239094,-471.17820835,0.00018899,2]
[334586398,1723282239103,-500.0,0.00018904,2]
[334586399,1723282239113,-1000.0,0.00019,19]
[334586400,1723282239123,-250.0,0.00019041,2]
[334586401,1723282239132,-5238.95624179,0.00019102,2]
[334586402,1723282239141,-300.0,0.00019153,2]
[334586403,1723282239152,-300.0,0.00019153,2]
[334586404,1723282239162,-2783.4248212,0.00019177,2]
[334586405,1723282239172,-157.728566,0.00019178,2]
[334586406,1723282239181,-154.87477324,0.00019256,2]
[334586407,1723282239190,-846.11344164,0.00019256,2]
[334586408,1723282239200,-1029.44401463,0.00019335,2]
[334586409,1723282239209,-5089.8498286,0.00019364,2]
[334586410,1723282239219,-150.0,0.0001938,2]
[334586411,1723282239228,-534.13,0.00019451,2]
[334586412,1723282239238,-154.97453546,0.00019451,2]
[334586413,1723282239248,-664.5582695,0.00019477,2]
[334586414,1723282239258,-156.1205383,0.00019547,2]
[334586415,1723282239268,-5089.8498286,0.00019551,2]
[334586416,1723282239281,-297.12317978,0.00019652,2]
[334586417,1723282239291,-897.62520902,0.00019708,2]
[334586418,1723282239301,-897.62520901,0.00019756,2]
[334586419,1723282239481,-897.62520901,0.00019803,2]
[334586420,1723282239491,-185.0,0.00019808,2]
[334586421,1723282239501,-350.0,0.00019808,2]
[334586422,1723282239511,-350.0,0.00019808,2]
[334586423,1723282239520,-350.0,0.00019808,2]
[334586424,1723282239530,-185.0,0.00019808,2]
[334586425,1723282239540,-185.0,0.00019808,2]
[334586426,1723282239549,-185.0,0.00019808,2]
[334586427,1723282239559,-185.0,0.00019808,2]
[334586428,1723282239569,-185.0,0.00019808,2]
[334586429,1723282239578,-185.0,0.00019808,2]
[334586430,1723282239588,-185.0,0.00019808,2]
[334586431,1723282239597,-185.0,0.00019808,2]
[334586432,1723282239607,-185.0,0.00019808,2]
[334586433,1723282239616,-185.0,0.00019808,2]
[334586434,1723282239626,-185.0,0.00019808,2]
[334586435,1723282239635,-185.0,0.00019808,2]
[334586436,1723282239645,-185.0,0.00019808,2]
[334586437,1723282239657,-185.0,0.00019808,2]
[334586438,1723282239666,-350.0,0.00019808,2]
[334586439,1723282239676,-350.0,0.00019808,2]
[334586440,1723282239686,-350.0,0.00019808,2]
[334586441,1723282239695,-350.0,0.00019808,2]
[334586442,1723282239705,-350.0,0.00019808,2]
[334586443,1723282239714,-350.0,0.00019808,2]
[334586444,1723282239724,-350.0,0.00019808,2]
[334586445,1723282239736,-350.0,0.00019808,2]
[334586446,1723282239749,-350.0,0.00019808,2]
[334586447,1723282239759,-350.0,0.00019808,2]
[334586448,1723282239768,-350.0,0.00019808,2]
[334586449,1723282239779,-350.0,0.00019808,2]
[334586450,1723282239789,-350.0,0.00019808,2]
[334586451,1723282239798,-350.0,0.00019808,2]
[334586452,1723282239808,-185.0,0.00019808,2]
[334586453,1723282239818,-185.0,0.00019808,2]
[334586454,1723282239828,-185.0,0.00019808,2]
[334586455,1723282239837,-185.0,0.00019808,2]
[334586456,1723282239847,-185.0,0.00019808,2]
[334586457,1723282239856,-185.0,0.00019808,2]
[334586458,1723282239865,-185.0,0.00019808,2]
[334586459,1723282239875,-185.0,0.00019808,2]
[334586460,1723282239885,-185.0,0.00019808,2]
[334586461,1723282239895,-185.0,0.00019808,2]
[334586462,1723282239906,-185.0,0.00019808,2]
[334586463,1723282239915,-185.0,0.00019808,2]
[334586464,1723282239924,-185.0,0.00019808,2]
[334586465,1723282239934,-185.0,0.00019808,2]
[334586466,1723282239943,-350.0,0.00019808,2]
[334586467,1723282239952,-350.0,0.00019808,2]
[334586468,1723282239961,-350.0,0.00019808,2]
[334586469,1723282239971,-350.0,0.00019808,2]
[334586470,1723282239980,-350.0,0.00019808,2]
[334586471,1723282239990,-350.0,0.00019808,2]
[334586472,1723282239999,-350.0,0.00019808,2]
[334586473,1723282240009,-350.0,0.00019808,2]
[334586474,1723282240019,-350.0,0.00019808,2]
[334586475,1723282240028,-350.0,0.00019808,2]
[334586476,1723282240037,-350.0,0.00019808,2]
[334586477,1723282240047,-350.0,0.00019808,2]
[334586478,1723282240056,-350.0,0.00019808,2]
[334586479,1723282240065,-350.0,0.00019808,2]
[334586480,1723282240074,-5089.84982861,0.00019839,2]
[334586481,1723282240084,-7776.22218588,0.0001984,2]
[334586482,1723282240093,-1000.0,0.00019841,2]
[334586484,1723282240103,-897.62520901,0.00019851,2]
[334586485,1723282240113,-1000.0,0.00019881,2]
[334586486,1723282240123,-2000.0,0.0001989,2]
[334586487,1723282240133,-897.62520901,0.00019898,2]
[334586488,1723282240143,-2272.86017631,0.000199,2]
[334586489,1723282240154,-10144.248835,0.000199,2]
[334586490,1723282240163,-215.33430216,0.00019922,2]
[334586491,1723282240174,-1000.0,0.00019951,2]
[334586492,1723282240184,-328.70707109,0.00019968,2]
[334586493,1723282240193,-200.0,0.00019973,2]
[334586494,1723282240203,-200.0,0.00019973,2]
[334586495,1723282240213,-200.0,0.00019973,2]
[334586496,1723282240223,-1000.0,0.00019973,2]
[334586497,1723282240234,-41511.7606,0.0001998,2]
[334586498,1723282240243,-347.78219644,0.00019989,2]
[334586499,1723282240253,-253.16050476,0.00019989,2]
[334586500,1723282240262,-500.0,0.00019989,2]
[334586501,1723282240272,-288.82802939,0.00019989,2]
[334586502,1723282240281,-500.0,0.00019989,2]
[334586503,1723282240291,-500.0,0.00019989,2]
[334586504,1723282240301,-500.0,0.00019989,2]
[334586505,1723282240310,-500.0,0.00019989,2]
[334586506,1723282240319,-500.0,0.00019989,2]
[334586507,1723282240329,-500.0,0.00019989,2]
[334586508,1723282240338,-528.99476446,0.00019989,2]
[334586509,1723282240348,-500.0,0.00019989,2]
[334586510,1723282240358,-500.0,0.00019989,2]
[334586511,1723282240368,-500.0,0.00019989,2]
[334586512,1723282240377,-28748.47953282,0.0001999,11]
[334586513,1723282240386,-249070.5636,0.0001999,2]
[334586514,1723282240396,-91747.86476105,0.0001999,2]
[334586516,1723282240407,-150.01,0.00019999,2]
[334586518,1723282240416,-2993.33781285,0.00019999,2]
[334586519,1723282240426,-9442.77106065,0.0002,11]
[334586520,1723282240437,-2602.22864022,0.0002,2]
[334586521,1723282240448,-5100.1532694,0.0002,2]
[334586522,1723282240459,-217.45670487,0.0002,2]
[334586523,1723282240468,-156.4788062,0.0002,2]
[334586524,1723282240478,-1695.66004274,0.0002,2]
[334586536,1723282241688,-7732.96302146,0.0002,2]
[334586538,1723282241698,-154.79103211,0.0002,2]
[334586539,1723282241708,-3123.01656173,0.0002,2]
[334586541,1723282241717,-3020.91554833,0.0002,2]
[334586542,1723282241731,-435.0,0.0002,2]
[334586543,1723282241741,-188.14113643,0.0002,2]
[334586544,1723282241752,-1000.0,0.0002,20]
[334586545,1723282241761,-154.91670417,0.0002,2]
[334586546,1723282241771,-154.9212706,0.0002,2]
[334586547,1723282241780,-4984.48953305,0.0002,2]
[334586548,1723282241975,-65413.06768432,0.0002,2]
[334586549,1723282241991,-2580.38651211,0.0002,2]
[334586550,1723282242007,-664.93710948,0.0002,2]
[334586597,1723282477409,164.025334,0.00014247,2]
[334586599,1723282717092,1495.72315932,0.00014247,2]
[334586659,1723283029909,195.434379,0.00014247,2]
[334586705,1723283438307,-210.436185,0.00015517,2]
[334586707,1723283438319,-210.436185,0.0001556,2]
[334586708,1723283438330,-210.436185,0.00015602,2]
[334586710,1723283438340,-210.436185,0.00015645,2]
[334586712,1723283438350,-210.436185,0.00015687,2]
[334586714,1723283438361,-210.436185,0.0001573,2]
[334586716,1723283438371,-846.11344164,0.00015751,2]
[334586718,1723283438380,-1383.1311371,0.00015751,2]
[334586720,1723283438390,-210.436185,0.00015773,2]
[334586722,1723283438399,-210.436185,0.00015815,2]
[334586724,1723283438408,-210.436185,0.00015858,2]
[334586726,1723283438417,-210.436185,0.000159,2]
[334586728,1723283438426,-210.436185,0.00015943,2]
[334586730,1723283438436,-210.436185,0.00015985,2]
[334586732,1723283438445,-210.436185,0.00016028,2]
[334586733,1723283438454,-210.436185,0.0001607,2]
[334586734,1723283438464,-209.18351946,0.00016095,2]
[334586735,1723283438474,-309.51668002,0.00016095,2]
[334586736,1723283438484,-539.46554634,0.00016095,2]
[334586737,1723283438493,-156.8026651,0.00016095,2]
[334586738,1723283438503,-300.0,0.00016109,2]
[334586739,1723283438513,-694.52815247,0.0001611,2]
[334586740,1723283438522,-156.1205383,0.0001611,2]
[334586741,1723283438533,-414.22226738,0.0001611,2]
[334586742,1723283438546,-210.436185,0.00016113,2]
[334586743,1723283438555,-210.436185,0.00016155,2]
[334586744,1723283438564,-160.27989765,0.00016159,2]
[334586745,1723283438574,-210.436185,0.00016198,2]
[334586747,1723283438583,-210.436185,0.00016241,2]
[334586749,1723283438592,-210.436185,0.00016283,2]
[334586750,1723283438602,-154.79103211,0.00016309,2]
[334586751,1723283438611,-210.436185,0.00016326,2]
[334586752,1723283438621,-664.5582695,0.00016347,2]
[334586753,1723283438630,-1109.04434069,0.00016347,2]
[334586754,1723283438639,-22987.8017386,0.00016373,2]
[334586756,1723283438649,-166.08541052,0.00016532,2]
[334586757,1723283438658,-154.97453546,0.00016532,2]
[334586758,1723283438667,-188.63052762,0.00016532,2]
[334586759,1723283438677,-246.10133494,0.00016532,2]
[334586760,1723283438687,-1763.75242219,0.00017019,2]
[334586761,1723283438696,-624.19479585,0.00017019,2]
[334586762,1723283438705,-209.90726283,0.00017019,2]
[334586763,1723283438714,-9110.76868748,0.00017019,2]
[334586764,1723283438724,-156.94002104,0.00017019,2]
[334586765,1723283438734,-1091.50397563,0.00017019,2]
[334586766,1723283438743,-154.87477324,0.00017269,2]
[334586767,1723283438752,-862.42234122,0.00017269,2]
[334586768,1723283438761,-2140.71420812,0.00017269,2]
[334586769,1723283438771,-420.0,0.0001772,2]
[334586770,1723283438780,-20762.30804091,0.0001784,2]
[334586771,1723283438791,-1364.15976013,0.00018,2]
[334586772,1723283438800,-500.0,0.00018054,2]
[334586773,1723283438810,-1943.36304656,0.0001823,2]
[334586774,1723283438820,-7231.33841838,0.00018489,2]
[334586775,1723283438830,-1611.8412718,0.00018557,2]
[334586776,1723283438840,-1943.36304655,0.00018592,2]
[334586777,1723283438852,-2858.51438682,0.00018629,2]
[334586778,1723283438863,-1794.84907646,0.00018657,2]
[334586779,1723283438873,-4689.0551382,0.00018677,2]
[334586780,1723283438883,-198.89761948,0.00018701,2]
[334586781,1723283438893,-808.72297002,0.0001872,2]
[334586782,1723283438903,-492.52191219,0.00018773,2]
[334586783,1723283438913,-471.17820835,0.00018786,2]
[334586784,1723283438921,-352.83908275,0.00018904,2]
[334586785,1723283438938,-147.16091725,0.00018904,2]
[334586786,1723283438948,-403.3502506,0.0001891,2]
[334586787,1723283438957,-1943.36304655,0.00018954,2]
[334586788,1723283438967,-154.77557542,0.00018969,2]
[334586789,1723283438977,-579.14,0.00019136,3]
[334586790,1723283438988,-868.74,0.00019136,3]
[334586791,1723283438998,-4689.0551382,0.00019146,2]
[334586792,1723283439008,-7006.89915884,0.00019147,2]
[334586793,1723283439018,-289.57,0.00019157,3]
[334586794,1723283439027,-314.13592146,0.00019177,2]
[334586795,1723283439037,-153.0,0.00019178,2]
[334586796,1723283439046,-153.0,0.00019178,2]
[334586797,1723283439058,-153.0,0.00019178,2]
[334586798,1723283439067,-153.0,0.00019178,2]
[334586799,1723283439078,-157.728566,0.00019178,2]
[334586800,1723283439088,-4689.0551382,0.00019192,2]
[334586801,1723283439100,-9649.70159836,0.00019256,2]
[334586802,1723283439110,-150.112233,0.000193,2]
[334586803,1723283439120,-496.45,0.00019314,3]
[334586804,1723283439130,-1943.36304655,0.00019316,2]
[334586805,1723283439143,-500.0,0.00019324,2]
[334586806,1723283439153,-200.48393973,0.00019324,2]
[334586807,1723283439165,-500.0,0.00019324,2]
[334586808,1723283439174,-352.65665323,0.00019324,2]
[334586809,1723283439184,-172.34367574,0.00019324,2]
[334586810,1723283439193,-500.0,0.00019324,2]
[334586811,1723283439202,-500.0,0.00019324,2]
[334586812,1723283439211,-500.0,0.00019324,2]
[334586813,1723283439220,-500.0,0.00019324,2]
[334586814,1723283439229,-500.0,0.00019324,2]
[334586815,1723283439240,-500.0,0.00019324,2]
[334586816,1723283439250,-356.23556016,0.00019324,2]
[334586817,1723283439259,-500.0,0.00019324,2]
[334586818,1723283439270,-500.0,0.00019324,2]
[334586819,1723283439283,-500.0,0.00019324,2]
[334586820,1723283439293,-500.0,0.00019324,2]
[334586821,1723283439302,-500.0,0.00019324,2]
[334586822,1723283439311,-500.0,0.00019324,2]
[334586823,1723283439322,-500.0,0.00019324,2]
[334586824,1723283439334,-500.0,0.00019324,2]
[334586825,1723283439345,-207.7516841,0.00019324,2]
[334586826,1723283439357,-75183.4904817,0.00019325,2]
[334586827,1723283439368,-150.112233,0.000194,2]
[334586828,1723283439378,-587.0,0.00019492,2]
[334586829,1723283439387,-150.112233,0.000195,2]
[334586830,1723283439398,-150.112233,0.000195,2]
[334586831,1723283439407,-4689.0551382,0.00019527,2]
[334586832,1723283439417,-150.112233,0.000196,2]
[334586833,1723283439427,-1943.36304655,0.00019678,2]
[334586834,1723283439436,-2000.0,0.00019688,2]
[334586835,1723283439446,-1308.40102961,0.00019688,2]
[334586836,1723283439455,-7776.22218588,0.00019699,2]
[334586837,1723283439465,-150.112233,0.000197,2]
[334586838,1723283439475,-150.112233,0.000197,2]
[334586839,1723283439487,-1000.0,0.00019734,2]
[334586841,1723283439497,-631.45775577,0.00019763,2]
[334586842,1723283439506,-200.0,0.00019773,2]
[334586843,1723283439517,-200.0,0.00019773,2]
[334586844,1723283439527,-200.0,0.00019773,2]
[334586845,1723283439536,-330.81018725,0.00019777,2]
[334586846,1723283439546,-500.0,0.00019777,2]
[334586847,1723283439556,-500.0,0.00019777,2]
[334586848,1723283439565,-596.49033491,0.00019777,2]
[334586849,1723283439576,-279.58859706,0.00019777,2]
[334586851,1723283439586,-596.49033491,0.00019777,2]
[334586853,1723283439597,-398.37523839,0.00019777,2]
[334586855,1723283439607,-596.49033491,0.00019777,2]
[334586857,1723283439617,-596.49033491,0.00019777,2]
[334586858,1723283439627,-596.49033491,0.00019777,2]
[334586859,1723283439637,-596.49033491,0.00019777,2]
[334586860,1723283439648,-596.49033491,0.00019777,2]
[334586861,1723283439657,-596.49033491,0.00019777,2]
[334586862,1723283439666,-596.49033491,0.00019777,2]
[334586863,1723283439678,-596.49033491,0.00019777,2]
[334586864,1723283439688,-596.49033491,0.00019777,2]
[334586865,1723283439698,-596.49033491,0.00019777,2]
[334586866,1723283439708,-596.49033491,0.00019777,2]
[334586867,1723283439718,-596.49033491,0.00019777,2]
[334586868,1723283439729,-626.31485166,0.00019777,2]
[334586869,1723283439740,-626.31485166,0.00019777,2]
[334586870,1723283439751,-626.31485166,0.00019777,2]
[334586871,1723283439762,-626.31485166,0.00019777,2]
[334586872,1723283439772,-626.31485166,0.00019777,2]
[334586873,1723283439781,-626.31485166,0.00019777,2]
[334586874,1723283439791,-626.31485166,0.00019777,2]
[334586875,1723283439801,-626.31485166,0.00019777,2]
[334586876,1723283439811,-638.8411487,0.00019777,2]
[334586877,1723283439820,-638.8411487,0.00019777,2]
[334586878,1723283439830,-144724.40241156,0.00019777,11]
[334586879,1723283439839,-75183.4904817,0.00019778,2]
[334586880,1723283439849,-63255.28096597,0.00019778,11]
[334586881,1723283439859,-225550.471445,0.00019778,2]
[334586882,1723283439869,-151.0,0.00019788,2]
[334586883,1723283439882,-205.937812,0.00019788,2]
[334586884,1723283439891,-205.937812,0.00019788,2]
[334586885,1723283439901,-151.0,0.00019788,2]
[334586886,1723283439912,-194.392481,0.00019788,2]
[334586887,1723283439922,-194.392481,0.00019788,2]
[334586888,1723283439931,-151.0,0.00019788,2]
[334586889,1723283439941,-151.0,0.00019788,2]
[334586890,1723283439951,-3083.47922222,0.0001979,2]
[334586891,1723283439960,-285.0,0.00019799,2]
[334586892,1723283439970,-285.0,0.00019799,2]
[334586893,1723283439981,-285.0,0.00019799,2]
[334586894,1723283439992,-285.0,0.00019799,2]
[334586895,1723283440010,-285.0,0.00019799,2]
[334586896,1723283440019,-285.0,0.00019799,2]
[334586897,1723283440029,-285.0,0.00019799,2]
[334586898,1723283440038,-285.0,0.00019799,2]
[334586899,1723283440048,-285.0,0.00019799,2]
[334586900,1723283440057,-285.0,0.00019799,2]
[334586901,1723283440067,-285.0,0.00019799,2]
[334586902,1723283440077,-285.0,0.00019799,2]
[334586903,1723283440087,-285.0,0.00019799,2]
[334586904,1723283440096,-285.0,0.00019799,2]
[334586905,1723283440106,-285.0,0.00019799,2]
[334586907,1723283440116,-285.0,0.00019799,2]
[334586908,1723283440125,-285.0,0.00019799,2]
[334586909,1723283440135,-540.0,0.00019799,2]
[334586910,1723283440144,-540.0,0.00019799,2]
[334586911,1723283440154,-540.0,0.00019799,2]
[334586912,1723283440163,-540.0,0.00019799,2]
[334586914,1723283440173,-540.0,0.00019799,2]
[334586916,1723283440182,-540.0,0.00019799,2]
[334586918,1723283440192,-540.0,0.00019799,2]
[334586920,1723283440202,-540.0,0.00019799,2]
[334586923,1723283440211,-540.0,0.00019799,2]
[334586924,1723283440221,-540.0,0.00019799,2]
[334586925,1723283440233,-540.0,0.00019799,2]
[334586926,1723283440242,-540.0,0.00019799,2]
[334586927,1723283440251,-540.0,0.00019799,2]
[334586928,1723283440260,-540.0,0.00019799,2]
[334586929,1723283440270,-540.0,0.00019799,2]
[334586930,1723283440284,-540.0,0.00019799,2]